fUSD/lending_fUSD_20240301
["ID","MTS","AMOUNT","RATE_DAILY","PERIOD"]
[315906099,1709261043239,500.0,0.00021917,2]
[315906100,1709261043599,500.0,0.00022191,2]
[315906101,1709261043850,200.0,0.00022022,2]
[315906102,1709261044842,200.0,0.00022022,2]
[315906103,1709261045361,200.0,0.00022022,2]
[315906104,1709261045940,200.0,0.00022022,2]
[315906105,1709261046419,200.0,0.00022022,2]
[315906106,1709261046713,500.0,0.00022126,2]
[315906107,1709261046746,1013.64,0.00021917,2]
[315906108,1709261047049,1013.64,0.00022191,2]
[315906109,1709261047321,200.0,0.00022022,2]
[315906110,1709261047850,500.0,0.00021917,2]
[315906111,1709261047884,500.0,0.00021917,2]
[315906112,1709261048143,200.0,0.00022022,2]
[315906113,1709261048181,500.0,0.00022191,2]
[315906114,1709261048213,500.0,0.00022191,2]
[315906115,1709261048336,509.57063777,0.00021917,2]
[315906116,1709261048970,500.0,0.00021917,2]
[315906117,1709261049071,500.0,0.00022191,2]
[315906118,1709261051564,500.0,0.00021917,2]
[315906119,1709261051839,500.0,0.00022191,2]
[315906120,1709261052010,500.0,0.00021917,2]
[315906121,1709261052325,500.0,0.00022191,2]
[315906122,1709261052367,2652.94,0.00021917,2]
[315906123,1709261052654,2652.94,0.00022191,2]
[315906124,1709261053256,500.0,0.00021917,2]
[315906125,1709261053617,500.0,0.00022191,2]
[315906126,1709261057336,500.0,0.00021917,2]
[315906127,1709261057978,500.0,0.00022191,2]
[315906128,1709261058231,1514.44,0.00021917,2]
[315906129,1709261058588,1514.44,0.00022191,2]
[315906130,1709261058898,644.35,0.00022126,2]
[315906131,1709261058941,936.04,0.00021917,2]
[315906132,1709261059383,500.0,0.00021917,2]
[315906133,1709261059441,936.04,0.00022191,2]
[315906134,1709261059601,500.0,0.00022191,2]
[315906135,1709261059651,1021.45,0.00021917,2]
[315906136,1709261059956,1021.45,0.00022191,2]
[315906137,1709261062110,363.90797229,0.0002219,2]
[315906138,1709261062802,500.0,0.00021917,2]
[315906139,1709261063079,709.18,0.00021917,2]
[315906140,1709261063174,500.0,0.00022191,2]
[315906141,1709261063797,709.18,0.00022191,2]
[315906142,1709261064497,580.16,0.00021917,2]
[315906143,1709261064660,589.05,0.00022126,2]
[315906144,1709261064759,580.16,0.00022191,2]
[315906145,1709261065240,500.0,0.00021917,2]
[315906146,1709261065433,500.0,0.00022022,2]
[315906147,1709261065504,500.0,0.00022191,2]
[315906148,1709261065630,500.0,0.00021917,2]
[315906149,1709261065993,500.0,0.00022191,2]
[315906150,1709261067957,1281.45,0.00021917,2]
[315906151,1709261068356,1281.45,0.00022191,2]
[315906152,1709261069909,500.0,0.00022126,2]
[315906153,1709261070225,12039.9685509,0.000222,2]
[315906154,1709261070353,902.8,0.00021917,2]
[315906155,1709261070746,902.8,0.00022191,2]
[315906156,1709261071193,500.0,0.00021917,2]
[315906157,1709261071591,500.0,0.00022191,2]
[315906158,1709261072224,580.61,0.00021917,2]
[315906159,1709261072523,580.61,0.00022191,2]
[315906160,1709261074779,200.0,0.00022022,2]
[315906161,1709261075526,500.0,0.00022126,2]
[315906162,1709261075938,1056.59,0.00021917,2]
[315906163,1709261076317,1056.59,0.00022191,2]
[315906164,1709261081095,302.65597425,0.00021917,2]
[315906165,1709261082524,3083.94,0.00021917,2]
[315906166,1709261082573,1438.44,0.00021917,2]
[315906167,1709261083191,1438.44,0.00022191,2]
[315906168,1709261083225,3083.94,0.00022191,2]
[315906169,1709261083383,500.0,0.00021917,2]
[315906170,1709261083434,500.0,0.00022126,2]
[315906171,1709261083467,1142.11,0.00021917,2]
[315906172,1709261083506,500.0,0.00022191,2]
[315906173,1709261083669,1142.11,0.00022191,2]
[315906174,1709261084715,500.0,0.00021917,2]
[315906175,1709261085145,500.0,0.00022191,2]
[315906176,1709261085174,966.98,0.00021917,2]
[315906177,1709261085409,966.98,0.00022191,2]
[315906178,1709261086480,552.16,0.00022126,2]
[315906179,1709261086867,4949.98,0.00021917,2]
[315906180,1709261087156,4949.98,0.00022191,2]
[315906181,1709261088135,500.0,0.00021917,2]
[315906182,1709261088487,500.0,0.00022191,2]
[315906183,1709261093109,500.0,0.00022126,2]
[315906184,1709261093725,500.0,0.00021917,2]
[315906185,1709261094156,500.0,0.00022191,2]
[315906186,1709261095955,500.0,0.00021917,2]
[315906187,1709261096118,1513.34,0.00021917,2]
[315906188,1709261096232,547.79359839,0.00022191,2]
[315906189,1709261096635,500.0,0.00021917,2]
[315906190,1709261096742,1513.34,0.00022191,2]
[315906191,1709261096887,500.0,0.00022191,2]
[315906192,1709261097019,711.11,0.00021917,2]
[315906193,1709261098209,500.0,0.00021917,2]
[315906194,1709261098870,500.0,0.00022191,2]
[315906195,1709261099185,711.11,0.00022191,2]
[315906196,1709261099283,500.0,0.00021917,2]
[315906197,1709261099922,500.0,0.00022191,2]
[315906198,1709261100475,1230.79,0.00021917,2]
[315906199,1709261101222,1230.79,0.00022191,2]
[315906200,1709261101462,2206.81,0.00021917,2]
[315906201,1709261101644,500.0,0.00021917,2]
[315906202,1709261101907,500.0,0.00022191,2]
[315906203,1709261101938,2206.81,0.00022191,2]
[315906204,1709261102913,500.0,0.00021917,2]
[315906205,1709261103066,548.01,0.00022126,2]
[315906206,1709261103169,500.0,0.00022191,2]
[315906207,1709261107837,500.0,0.00022126,2]
[315906208,1709261108489,500.0,0.00021917,2]
[315906209,1709261108762,500.0,0.00022191,2]
[315906210,1709261112054,1368.06,0.00021917,2]
[315906211,1709261112234,1368.06,0.00022191,2]
[315906212,1709261113017,836.14,0.00021917,2]
[315906213,1709261113311,836.14,0.00022191,2]
[315906214,1709261114145,500.0,0.00021917,2]
[315906215,1709261114418,500.0,0.00022191,2]
[315906216,1709261116489,1654.38,0.00022126,2]
[315906217,1709261117216,500.0,0.00022126,2]
[315906218,1709261117248,500.0,0.00021917,2]
[315906219,1709261117308,500.0,0.00021917,2]
[315906220,1709261117496,500.0,0.00022191,2]
[315906221,1709261117586,500.0,0.00022191,2]
[315906222,1709261123557,500.0,0.00021917,2]
[315906223,1709261123878,500.0,0.00021917,2]
[315906224,1709261123924,500.0,0.00022191,2]
[315906225,1709261124133,500.0,0.00021917,2]
[315906226,1709261124239,500.0,0.00022191,2]
[315906227,1709261124563,500.0,0.00022191,2]
[315906228,1709261125991,756.97,0.00022126,2]
[315906229,1709261126020,500.0,0.00021917,2]
[315906230,1709261126383,500.0,0.00022191,2]
[315906231,1709261127399,593.45,0.00021917,2]
[315906232,1709261127707,593.45,0.00022191,2]
[315906233,1709261128028,500.0,0.00021917,2]
[315906234,1709261128304,500.0,0.00022191,2]
[315906235,1709261130286,500.0,0.00021917,2]
[315906236,1709261130671,500.0,0.00022191,2]
[315906237,1709261131947,500.0,0.00021917,2]
[315906238,1709261132267,500.0,0.00022191,2]
[315906239,1709261132716,1238.07,0.00022126,2]
[315906240,1709261133792,1808.45,0.00021917,2]
[315906241,1709261134073,1808.45,0.00022191,2]
[315906242,1709261135539,631.34,0.00021917,2]
[315906243,1709261137731,1929.3,0.00021917,2]
[315906244,1709261138426,1929.3,0.00022191,2]
[315906245,1709261138910,500.0,0.00021917,2]
[315906246,1709261139286,500.0,0.00022191,2]
[315906247,1709261139505,631.34,0.00022191,2]
[315906248,1709261139692,531.87,0.00022126,2]
[315906249,1709261141715,500.0,0.00021917,2]
[315906250,1709261141914,500.0,0.00021917,2]
[315906251,1709261142047,500.0,0.00022191,2]
[315906252,1709261142314,500.0,0.00022191,2]
[315906253,1709261145807,500.0,0.00022126,2]
[315906254,1709261147365,500.0,0.00021917,2]
[315906255,1709261147398,500.0,0.00021917,2]
[315906256,1709261147687,500.0,0.00022191,2]
[315906257,1709261147736,500.0,0.00022191,2]
[315906258,1709261150418,500.0,0.00021917,2]
[315906259,1709261150456,500.0,0.00022126,2]
[315906260,1709261150695,500.0,0.00022191,2]
[315906261,1709261150731,510.18937487,0.00021917,2]
[315906262,1709261150843,1222.24,0.00021917,2]
[315906263,1709261151219,1222.24,0.00022191,2]
[315906264,1709261151793,500.0,0.00021917,2]
[315906265,1709261151851,500.0,0.00022191,2]
[315906266,1709261152114,518.49,0.00021917,2]
[315906267,1709261152373,518.49,0.00022191,2]
[315906268,1709261154997,500.0,0.00021917,2]
[315906269,1709261155070,500.0,0.00022191,2]
[315906270,1709261156940,500.0,0.00021917,2]
[315906271,1709261157289,500.0,0.00022191,2]
[315906272,1709261157753,566.9,0.00022126,2]
[315906273,1709261159192,568.43,0.00021917,2]
[315906274,1709261159563,568.43,0.00022191,2]
[315906275,1709261162133,500.0,0.00021917,2]
[315906276,1709261162509,500.0,0.00022191,2]
[315906277,1709261164057,10000.0,0.000222,2]
[315906278,1709261165371,500.0,0.00021917,2]
[315906279,1709261165661,500.0,0.00022191,2]
[315906280,1709261166836,500.0,0.00022126,2]
[315906281,1709261166868,500.0,0.00021917,2]
[315906282,1709261167128,500.0,0.00022191,2]
[315906283,1709261167618,500.0,0.00021917,2]
[315906284,1709261167850,350.48407449,0.00022191,2]
[315906285,1709261170341,500.0,0.00022126,2]
[315906286,1709261171024,540.92,0.00022126,2]
[315906287,1709261171868,1876.5,0.00021917,2]
[315906288,1709261172152,1876.5,0.00022191,2]
[315906289,1709261173502,500.0,0.00021917,2]
[315906290,1709261173778,500.0,0.00022191,2]
[315906291,1709261174661,500.0,0.00021917,2]
[315906292,1709261174877,500.0,0.00022191,2]
[315906293,1709261175434,555.24,0.00021917,2]
[315906294,1709261176027,555.24,0.00022191,2]
[315906295,1709261176441,500.0,0.00021917,2]
[315906296,1709261176747,500.0,0.00022191,2]
[315906297,1709261177103,500.0,0.00021917,2]
[315906298,1709261177410,500.0,0.00022191,2]
[315906299,1709261178739,500.0,0.00021917,2]
[315906300,1709261179012,500.0,0.00022191,2]
[315906301,1709261180268,188.51096835,0.00021917,2]
[315906302,1709261181863,818.82,0.00022126,2]
[315906303,1709261182013,10000.0,0.000222,2]
[315906304,1709261183088,500.0,0.00021917,2]
[315906305,1709261183272,500.0,0.00022126,2]
[315906306,1709261183373,500.0,0.00022191,2]
[315906307,1709261185396,500.0,0.00021917,2]
[315906308,1709261185688,500.0,0.00022191,2]
[315906309,1709261187097,500.0,0.00021917,2]
[315906310,1709261187450,500.0,0.00022191,2]
[315906311,1709261187999,500.0,0.00021917,2]
[315906312,1709261188413,500.0,0.00022191,2]
[315906313,1709261188580,500.0,0.00021917,2]
[315906314,1709261189182,500.0,0.00022191,2]
[315906315,1709261191258,500.0,0.00021917,2]
[315906316,1709261191614,500.0,0.00021917,2]
[315906317,1709261191649,500.0,0.00022191,2]
[315906318,1709261191975,500.0,0.00022191,2]
[315906319,1709261193484,1364.91,0.00022126,2]
[315906320,1709261193683,500.0,0.00021917,2]
[315906321,1709261194420,500.0,0.00022191,2]
[315906322,1709261197798,500.0,0.00022126,2]
[315906323,1709261201121,2632.54,0.00021917,2]
[315906324,1709261201389,2632.54,0.00022191,2]
[315906325,1709261201712,500.0,0.00021917,2]
[315906326,1709261202871,500.0,0.00022191,2]
[315906327,1709261203153,500.0,0.00021917,2]
[315906328,1709261203405,500.0,0.00022191,2]
[315906329,1709261204851,1711.04,0.00022126,2]
[315906330,1709261205825,793.75,0.00022126,2]
[315906331,1709261208198,568.94,0.00021414,2]
[315906332,1709261208664,562.97,0.00021917,2]
[315906333,1709261209069,562.97,0.00022191,2]
[315906334,1709261211981,5081.25,0.00021917,2]
[315906335,1709261212278,5081.25,0.00022191,2]
[315906336,1709261213389,500.0,0.00021917,2]
[315906337,1709261213721,500.0,0.00022191,2]
[315906338,1709261214470,500.0,0.00021917,2]
[315906339,1709261214529,500.0,0.00021917,2]
[315906340,1709261214764,500.0,0.00022191,2]
[315906341,1709261215325,500.0,0.00022191,2]
[315906342,1709261215527,2484.64,0.00022126,2]
[315906343,1709261216291,214.5230938,0.00022126,2]
[315906344,1709261218785,500.0,0.00022126,2]
[315906345,1709261220122,500.0,0.00021917,2]
[315906346,1709261220522,500.0,0.00022191,2]
[315906347,1709261220893,500.0,0.00021917,2]
[315906348,1709261221219,500.0,0.00022191,2]
[315906349,1709261223247,5846.55,0.00021917,2]
[315906350,1709261223580,5846.55,0.00022191,2]
[315906351,1709261224893,632.81,0.00021917,2]
[315906352,1709261225160,632.81,0.00022191,2]
[315906353,1709261226938,500.0,0.00021917,2]
[315906354,1709261226997,500.0,0.00022191,2]
[315906355,1709261228338,180.91,0.00022126,2]
[315906356,1709261228576,500.0,0.00021917,2]
[315906357,1709261228858,514.26929492,0.00022191,2]
[315906358,1709261229352,1420.0,0.00022126,2]
[315906359,1709261230054,500.0,0.00021917,2]
[315906360,1709261230656,500.0,0.00022191,2]
[315906361,1709261230891,711.21,0.00022126,2]
[315906362,1709261231614,500.0,0.00021917,2]
[315906363,1709261231983,500.0,0.00022191,2]
[315906364,1709261235479,500.0,0.00021917,2]
[315906365,1709261235512,500.0,0.00021917,2]
[315906366,1709261235778,215.29785173,0.00022191,2]
[315906367,1709261235821,500.0,0.00022191,2]
[315906368,1709261236407,500.0,0.00021917,2]
[315906369,1709261236670,500.0,0.00022191,2]
[315906370,1709261239288,1012.56,0.00021917,2]
[315906371,1709261239584,1012.56,0.00022191,2]
[315906372,1709261240415,500.0,0.00021917,2]
[315906373,1709261241007,10000.0,0.000222,2]
[315906374,1709261241093,500.0,0.00022191,2]
[315906375,1709261242784,1044.86,0.00022126,2]
[315906376,1709261244243,500.0,0.00022126,2]
[315906377,1709261247237,766.82,0.00021917,2]
[315906378,1709261247821,766.82,0.00022191,2]
[315906379,1709261247880,507.91,0.00021917,2]
[315906380,1709261248080,507.91,0.00022191,2]
[315906381,1709261251742,936.99,0.00021917,2]
[315906382,1709261252016,936.99,0.00022191,2]
[315906383,1709261252251,500.0,0.00021917,2]
[315906384,1709261252537,500.0,0.00022191,2]
[315906385,1709261254308,742.43,0.00022126,2]
[315906386,1709261255655,4221.35,0.00022126,2]
[315906387,1709261257648,500.0,0.00021917,2]
[315906388,1709261258202,500.0,0.00022191,2]
[315906389,1709261259140,10000.0,0.000222,2]
[315906390,1709261259813,500.0,0.00021917,2]
[315906391,1709261260116,500.0,0.00022191,2]
[315906392,1709261262497,500.0,0.00021917,2]
[315906393,1709261262719,500.0,0.00021917,2]
[315906394,1709261262887,500.0,0.00022191,2]
[315906395,1709261262982,500.0,0.00022191,2]
[315906396,1709261264574,500.0,0.00022126,2]
[315906397,1709261268177,500.0,0.00021917,2]
[315906398,1709261269040,523.22,0.00021917,2]
[315906399,1709261269081,500.0,0.00022191,2]
[315906400,1709261269128,523.22,0.00022191,2]
[315906401,1709261271052,500.0,0.00021917,2]
[315906402,1709261271329,500.0,0.00022191,2]
[315906403,1709261271667,500.0,0.00021917,2]
[315906404,1709261271696,500.0,0.00021917,2]
[315906405,1709261271945,500.0,0.00022191,2]
[315906406,1709261272019,500.0,0.00022191,2]
[315906407,1709261272158,500.0,0.00022126,2]
[315906408,1709261272449,1914.83,0.00021917,2]
[315906409,1709261272759,1914.83,0.00022191,2]
[315906410,1709261273989,500.0,0.00021917,2]
[315906411,1709261274386,500.0,0.00022191,2]
[315906412,1709261275130,500.0,0.00021917,2]
[315906413,1709261275472,500.0,0.00022191,2]
[315906414,1709261277383,500.0,0.00021917,2]
[315906415,1709261277746,500.0,0.00022191,2]
[315906416,1709261278511,500.0,0.00021917,2]
[315906417,1709261278598,10000.0,0.000222,2]
[315906418,1709261279935,500.0,0.00022191,2]
[315906419,1709261279979,2667.58057857,0.0002,7]
[315906420,1709261281432,500.0,0.00021917,2]
[315906421,1709261282051,500.0,0.00022191,2]
[315906422,1709261282214,1388.23,0.00021917,2]
[315906423,1709261282794,1388.23,0.00022191,2]
[315906424,1709261284350,500.0,0.00021917,2]
[315906425,1709261284545,593.87,0.00022126,2]
[315906426,1709261284671,500.0,0.00022191,2]
[315906427,1709261287545,650.08,0.00021917,2]
[315906428,1709261287829,650.08,0.00022191,2]
[315906429,1709261288233,500.0,0.00021917,2]
[315906430,1709261288518,500.0,0.00022191,2]
[315906431,1709261293830,500.0,0.00021917,2]
[315906432,1709261294146,500.0,0.00022191,2]
[315906433,1709261294542,500.0,0.00021917,2]
[315906434,1709261294884,500.0,0.00022191,2]
[315906435,1709261295085,500.0,0.00022126,2]
[315906436,1709261295727,928.35,0.00022126,2]
[315906437,1709261296091,1174.66,0.00021917,2]
[315906438,1709261296390,1174.66,0.00022191,2]
[315906439,1709261298152,968.54,0.00021917,2]
[315906440,1709261298482,968.54,0.00022191,2]
[315906441,1709261302506,500.0,0.00021917,2]
[315906442,1709261302770,500.0,0.00022191,2]
[315906443,1709261303053,500.0,0.00021917,2]
[315906444,1709261303317,500.0,0.00022191,2]
[315906445,1709261304772,500.0,0.00021917,2]
[315906446,1709261305137,500.0,0.00022191,2]
[315906447,1709261305178,500.0,0.00022126,2]
[315906448,1709261305395,500.0,0.00022126,2]
[315906449,1709261307133,500.0,0.00021917,2]
[315906450,1709261307398,500.0,0.00022191,2]
[315906451,1709261308986,500.0,0.00021917,2]
[315906452,1709261309068,4537.48,0.00021917,2]
[315906453,1709261309230,500.0,0.00022191,2]
[315906454,1709261309341,4537.48,0.00022191,2]
[315906455,1709261309407,2431.86,0.00021917,2]
[315906456,1709261309701,2431.86,0.00022191,2]
[315906457,1709261312584,500.0,0.00021917,2]
[315906458,1709261312978,500.0,0.00022191,2]
[315906459,1709261315670,500.0,0.00021917,2]
[315906460,1709261315936,500.0,0.00022191,2]
[315906461,1709261316293,500.0,0.00021917,2]
[315906462,1709261316484,500.0,0.00021917,2]
[315906463,1709261316557,540.53497435,0.00022191,2]
[315906464,1709261316762,500.0,0.00022191,2]
[315906465,1709261317015,902.62,0.00022126,2]
[315906466,1709261318334,886.39,0.00021917,2]
[315906467,1709261318672,500.0,0.00021917,2]
[315906468,1709261318704,886.39,0.00022191,2]
[315906469,1709261318937,500.0,0.00022191,2]
[315906470,1709261319175,500.0,0.00021917,2]
[315906471,1709261319567,500.0,0.00022191,2]
[315906472,1709261320990,500.0,0.00021917,2]
[315906473,1709261321335,500.0,0.00022191,2]
[315906474,1709261323980,1128.22,0.00021917,2]
[315906475,1709261324371,500.0,0.00021917,2]
[315906476,1709261324650,500.0,0.00022191,2]
[315906477,1709261324771,1128.22,0.00022191,2]
[315906478,1709261325072,2927.0,0.000219,2]
[315906479,1709261327059,500.0,0.00021917,2]
[315906480,1709261327354,500.0,0.00022191,2]
[315906481,1709261327886,532.23,0.00022126,2]
[315906482,1709261328504,500.0,0.00021917,2]
[315906483,1709261328768,500.0,0.00022191,2]
[315906484,1709261330277,1387.23,0.00021917,2]
[315906485,1709261330648,1387.23,0.00022191,2]
[315906486,1709261332620,500.0,0.00021917,2]
[315906487,1709261332814,500.0,0.00022191,2]
[315906488,1709261332850,661.17,0.00022126,2]
[315906489,1709261335411,500.0,0.00021917,2]
[315906490,1709261335737,500.0,0.00022191,2]
[315906491,1709261337149,500.0,0.00021917,2]
[315906492,1709261337296,500.0,0.00021917,2]
[315906493,1709261337557,500.0,0.00022191,2]
[315906494,1709261337634,500.0,0.00022191,2]
[315906495,1709261338562,500.0,0.00022126,2]
[315906496,1709261340898,-363.90797229,0.00022208,2]
[315906497,1709261340921,-206.7786022,0.00022209,4]
[315906498,1709261340948,-156.71,0.0002221,2]
[315906499,1709261340971,-150.0,0.00022218,2]
[315906500,1709261340995,-160.15,0.00022231,2]
[315906501,1709261341017,-150.0,0.00022247,2]
[315906502,1709261341040,-231.693,0.0002228,2]
[315906503,1709261341061,-155.0,0.0002228,2]
[315906504,1709261341083,-204.0,0.0002228,2]
[315906505,1709261341104,-150.223,0.0002228,2]
[315906506,1709261341126,-155.258,0.0002228,2]
[315906507,1709261341148,-150.068,0.0002228,2]
[315906508,1709261341170,-228.196,0.0002228,2]
[315906509,1709261341193,-157.423,0.0002228,2]
[315906510,1709261341215,-250.0,0.0002228,2]
[315906511,1709261341236,-2687.0,0.000223,3]
[315906512,1709261341259,-154.36,0.00022305,2]
[315906513,1709261341280,-150.142,0.00022332,2]
[315906514,1709261341302,-984.756,0.0002234,2]
[315906515,1709261341326,-15705.503,0.0002234,2]
[315906516,1709261341348,-925.9,0.0002234,2]
[315906517,1709261341370,-2707.695,0.0002234,2]
[315906518,1709261341394,-1041.0,0.0002234,2]
[315906519,1709261341416,-2299.0,0.0002234,2]
[315906520,1709261341441,-960.295,0.0002234,2]
[315906521,1709261341464,-430.429,0.0002234,2]
[315906522,1709261341488,-217.674,0.0002234,2]
[315906523,1709261341512,-1963.214,0.0002234,2]
[315906524,1709261341533,-1259.0,0.0002234,2]
[315906525,1709261341556,-278.17,0.0002234,2]
[315906526,1709261341578,-432.746,0.0002234,2]
[315906527,1709261341601,-840.284,0.0002234,2]
[315906528,1709261341623,-322.0,0.0002234,2]
[315906529,1709261341645,-2427.032,0.0002234,2]
[315906530,1709261341668,-1455.0,0.0002234,2]
[315906531,1709261341693,-2909.0,0.0002234,2]
[315906532,1709261341716,-338.0,0.0002234,2]
[315906533,1709261341739,-1142.269,0.0002234,2]
[315906534,1709261341760,-163.441,0.0002234,2]
[315906535,1709261341782,-392.0,0.0002234,2]
[315906536,1709261341803,-299.073,0.0002234,2]
[315906537,1709261341827,-156.71,0.00022356,2]
[315906538,1709261341849,-161.38,0.00022356,2]
[315906539,1709261341871,-153.41,0.0002236,2]
[315906540,1709261341893,-19638.41590596,0.00022363,2]
[315906546,1709261432350,-363.90797229,0.00021389,2]
[315906547,1709261432360,-250.0,0.0002139,2]
[315906548,1709261432369,-155.0,0.000215,2]
[315906549,1709261432379,-1482.7221522,0.000219,2]
[315906550,1709261432538,-1008.9263289,0.000219,2]
[315906551,1709261432577,-825.78361698,0.000219,2]
[315906552,1709261432589,-1695.29020225,0.000219,2]
[315906553,1709261432636,-2271.04204194,0.000219,2]
[315906565,1709261439521,-159.68,0.00021563,2]
[315906566,1709261439531,-159.68,0.00021688,2]
[315906567,1709261439540,-159.68,0.00021813,2]
[315906568,1709261439550,-559.71015179,0.000219,2]
[315906571,1709261440905,-156.52550594,0.000219,2]
[315906572,1709261440915,-500.0,0.00021917,2]
[315906573,1709261440925,-500.0,0.00021917,2]
[315906574,1709261440934,-500.0,0.00021917,2]
[315906575,1709261440943,-500.0,0.00021917,2]
[315906576,1709261440952,-500.0,0.00021917,2]
[315906577,1709261440962,-205.08210686,0.00021917,2]
[315906585,1709261444549,-691.14789314,0.00021917,2]
[315906586,1709261444558,-204.32723983,0.00021917,2]
[315906587,1709261444666,-295.67276017,0.00021917,2]
[315906588,1709261444676,-500.0,0.00021917,2]
[315906589,1709261444685,-500.0,0.00021917,2]
[315906590,1709261444695,-500.0,0.00021917,2]
[315906591,1709261444704,-578.73,0.00021917,2]
[315906592,1709261444713,-625.72,0.00021917,2]
[315906593,1709261444723,-500.0,0.00021917,2]
[315906594,1709261444732,-500.0,0.00021917,2]
[315906595,1709261444743,-507.27428099,0.00021917,2]
[315906596,1709261444752,-442.52599534,0.00021917,2]
[315906597,1709261444762,-500.0,0.00021917,2]
[315906598,1709261444772,-500.0,0.00021917,2]
[315906599,1709261444781,-995.87,0.00021917,2]
[315906600,1709261444791,-500.0,0.00021917,2]
[315906601,1709261444801,-597.29,0.00021917,2]
[315906602,1709261444811,-500.0,0.00021917,2]
[315906603,1709261444820,-515.1849605,0.00021917,2]
[315906604,1709261444829,-500.0,0.00021917,2]
[315906605,1709261444839,-500.0,0.00021917,2]
[315906606,1709261444849,-500.0,0.00021917,2]
[315906607,1709261444859,-500.0,0.00021917,2]
[315906608,1709261444868,-500.0,0.00021917,2]
[315906609,1709261444878,-500.0,0.00021917,2]
[315906610,1709261444887,-500.0,0.00021917,2]
[315906611,1709261444897,-500.0,0.00021917,2]
[315906612,1709261444907,-500.0,0.00021917,2]
[315906613,1709261444917,-502.60720734,0.00021917,2]
[315906614,1709261444927,-152.55,0.00021917,2]
[315906615,1709261444936,-500.0,0.00021917,2]
[315906616,1709261444945,-500.0,0.00021917,2]
[315906617,1709261444954,-500.0,0.00021917,2]
[315906618,1709261444964,-1417.68,0.00021917,2]
[315906619,1709261444974,-500.0,0.00021917,2]
[315906620,1709261444983,-590.95,0.00021917,2]
[315906621,1709261444994,-360.271132,0.00021917,2]
[315906622,1709261445003,-500.0,0.00021917,2]
[315906623,1709261445013,-500.0,0.00021917,2]